[Event "Live Chess"]
[Site "Chess.com"]
[Date "2024.06.02"]
[Round "-"]
[White "chess5013"]
[Black "JanMur7"]
[Result "0-1"]
[WhiteElo "1301"]
[BlackElo "2277"]
[TimeControl "300"]
[EndTime "2:36:01 PDT"]
[Termination "JanMur7 won by checkmate"]

1. d4 {[%clk 0:04:57]} 1... Nf6 {[%clk 0:04:58.6]} 2. c4 {[%clk 0:04:55.5]} 2...
a6 {[%clk 0:04:56.7]} 3. g3 {[%clk 0:04:54.4]} 3... b5 {[%clk 0:04:55.6]} 4. c5
{[%clk 0:04:49.8]} 4... Bb7 {[%clk 0:04:53.9]} 5. Nf3 {[%clk 0:04:48.4]} 5... e6
{[%clk 0:04:50.8]} 6. Bg2 {[%clk 0:04:47.3]} 6... d6 {[%clk 0:04:49.9]} 7. O-O
{[%clk 0:04:43.6]} 7... dxc5 {[%clk 0:04:45.3]} 8. dxc5 {[%clk 0:04:42.1]} 8...
Qxd1 {[%clk 0:04:44.3]} 9. Rxd1 {[%clk 0:04:40.9]} 9... Bxc5 {[%clk 0:04:43.8]}
10. Nc3 {[%clk 0:04:30.9]} 10... O-O {[%clk 0:04:40.3]} 11. Bf4 {[%clk
0:04:29.6]} 11... Bb6 {[%clk 0:04:36.1]} 12. e3 {[%clk 0:04:27.2]} 12... c5
{[%clk 0:04:30.4]} 13. a3 {[%clk 0:04:21.3]} 13... Nbd7 {[%clk 0:04:24.6]} 14.
Rd2 {[%clk 0:04:15.7]} 14... Rfd8 {[%clk 0:04:09.2]} 15. Rad1 {[%clk 0:04:12.8]}
15... Nf8 {[%clk 0:04:02.4]} 16. Ne5 {[%clk 0:03:51.1]} 16... Bxg2 {[%clk
0:03:51.6]} 17. Kxg2 {[%clk 0:03:46.9]} 17... Ng6 {[%clk 0:03:51.1]} 18. Nxg6
{[%clk 0:03:38.2]} 18... hxg6 {[%clk 0:03:51]} 19. Rxd8+ {[%clk 0:03:23.7]}
19... Rxd8 {[%clk 0:03:50.9]} 20. Rxd8+ {[%clk 0:03:08.7]} 20... Bxd8 {[%clk
0:03:50.8]} 21. Bd6 {[%clk 0:03:07.2]} 21... c4 {[%clk 0:03:48.5]} 22. Kf3
{[%clk 0:03:02.4]} 22... Nd5 {[%clk 0:03:46.5]} 23. e4 {[%clk 0:02:54.9]} 23...
Nxc3 {[%clk 0:03:44.2]} 24. bxc3 {[%clk 0:02:53.1]} 24... Bf6 {[%clk 0:03:39.3]}
25. e5 {[%clk 0:02:48.5]} 25... Bg5 {[%clk 0:03:37.6]} 26. Bb4 {[%clk
0:02:44.2]} 26... Bc1 {[%clk 0:03:33.9]} 27. Ke2 {[%clk 0:02:37.8]} 27... a5
{[%clk 0:03:26.4]} 28. Bxa5 {[%clk 0:02:32.2]} 28... Bxa3 {[%clk 0:03:25.1]} 29.
Ke3 {[%clk 0:02:15.4]} 29... Bc5+ {[%clk 0:03:22.7]} 30. Ke4 {[%clk 0:02:12.2]}
30... Bxf2 {[%clk 0:03:20.7]} 31. Bb4 {[%clk 0:02:03.6]} 31... f5+ {[%clk
0:03:17.8]} 32. Kf3 {[%clk 0:02:02]} 32... Bg1 {[%clk 0:03:15.8]} 33. Kg2 {[%clk
0:02:00.8]} 33... Bb6 {[%clk 0:03:13.6]} 34. Kf3 {[%clk 0:01:58.9]} 34... g5
{[%clk 0:03:11.6]} 35. h3 {[%clk 0:01:53.7]} 35... Kf7 {[%clk 0:03:09.6]} 36.
Kg2 {[%clk 0:01:45.4]} 36... Bc7 {[%clk 0:02:55.7]} 37. Bd6 {[%clk 0:01:33.7]}
37... Bxd6 {[%clk 0:02:53.4]} 38. exd6 {[%clk 0:01:33.4]} 38... b4 {[%clk
0:02:53.1]} 39. cxb4 {[%clk 0:01:15.6]} 39... c3 {[%clk 0:02:52.2]} 40. d7
{[%clk 0:01:10.2]} 40... Ke7 {[%clk 0:02:52.1]} 41. Kf2 {[%clk 0:01:09.2]} 41...
c2 {[%clk 0:02:49.4]} 42. d8=Q+ {[%clk 0:01:05.9]} 42... Kxd8 {[%clk 0:02:46.7]}
43. Ke2 {[%clk 0:01:05.2]} 43... c1=Q {[%clk 0:02:45.8]} 44. b5 {[%clk
0:01:04.6]} 44... Qc4+ {[%clk 0:02:45.3]} 45. Kf3 {[%clk 0:01:02.9]} 45... Qxb5
{[%clk 0:02:45.2]} 46. g4 {[%clk 0:01:02.2]} 46... Qd5+ {[%clk 0:02:45.1]} 47.
Kg3 {[%clk 0:01:00.1]} 47... f4+ {[%clk 0:02:45]} 48. Kf2 {[%clk 0:00:58.9]}
48... Qd2+ {[%clk 0:02:44.4]} 49. Kg1 {[%clk 0:00:57.7]} 49... Qe3+ {[%clk
0:02:43.5]} 50. Kg2 {[%clk 0:00:56.1]} 50... Qg3+ {[%clk 0:02:43.1]} 51. Kf1
{[%clk 0:00:54.9]} 51... Qxh3+ {[%clk 0:02:43]} 52. Kg1 {[%clk 0:00:54.1]} 52...
Qxg4+ {[%clk 0:02:42.9]} 53. Kf1 {[%clk 0:00:53.1]} 53... Qg3 {[%clk 0:02:42.8]}
54. Ke2 {[%clk 0:00:50.8]} 54... Qe3+ {[%clk 0:02:41.1]} 55. Kd1 {[%clk
0:00:49.7]} 55... Qf2 {[%clk 0:02:40.3]} 56. Kc1 {[%clk 0:00:48.5]} 56... g4
{[%clk 0:02:40.2]} 57. Kd1 {[%clk 0:00:47.6]} 57... g3 {[%clk 0:02:40.1]} 58.
Kc1 {[%clk 0:00:46.4]} 58... g2 {[%clk 0:02:40]} 59. Kd1 {[%clk 0:00:45.5]}
59... g1=Q# {[%clk 0:02:39.9]} 0-1

[Event "Live Chess"]
[Site "Chess.com"]
[Date "2024.06.02"]
[Round "-"]
[White "Zhevzh1k7"]
[Black "Purple1szed"]
[Result "0-1"]
[WhiteElo "1107"]
[BlackElo "2076"]
[TimeControl "300"]
[EndTime "2:36:23 PDT"]
[Termination "Purple1szed won by resignation"]

1. e4 {[%clk 0:04:57.4]} 1... e5 {[%clk 0:04:59.4]} 2. Nf3 {[%clk 0:04:53.9]}
2... Nc6 {[%clk 0:04:59.1]} 3. Bc4 {[%clk 0:04:52.2]} 3... Nf6 {[%clk
0:04:58.8]} 4. d3 {[%clk 0:04:49.5]} 4... Bc5 {[%clk 0:04:58]} 5. O-O {[%clk
0:04:46.6]} 5... h6 {[%clk 0:04:57.5]} 6. c3 {[%clk 0:04:40]} 6... d6 {[%clk
0:04:55.8]} 7. d4 {[%clk 0:04:38.9]} 7... Bb6 {[%clk 0:04:49.9]} 8. Nbd2 {[%clk
0:04:28.6]} 8... exd4 {[%clk 0:04:48.9]} 9. cxd4 {[%clk 0:04:23.3]} 9... Nxd4
{[%clk 0:04:48.8]} 10. Nxd4 {[%clk 0:04:21.9]} 10... Bxd4 {[%clk 0:04:48.7]} 11.
Nf3 {[%clk 0:04:17.3]} 11... Bb6 {[%clk 0:04:48]} 12. Re1 {[%clk 0:04:12.5]}
12... O-O {[%clk 0:04:47]} 13. Be3 {[%clk 0:04:01.6]} 13... Bg4 {[%clk
0:04:45.3]} 14. Bxb6 {[%clk 0:04:00]} 14... axb6 {[%clk 0:04:45.2]} 15. h3
{[%clk 0:03:57.7]} 15... Bh5 {[%clk 0:04:43.8]} 16. Qd3 {[%clk 0:03:50.9]} 16...
Bg6 {[%clk 0:04:39.5]} 17. Rad1 {[%clk 0:03:38.9]} 17... Re8 {[%clk 0:04:38.5]}
18. Bd5 {[%clk 0:03:30.7]} 18... c6 {[%clk 0:04:36.3]} 19. Bb3 {[%clk
0:03:26.5]} 19... Nxe4 {[%clk 0:04:31.4]} 20. Nd2 {[%clk 0:02:51.6]} 20... Nxf2
{[%clk 0:04:06.6]} 21. Rxe8+ {[%clk 0:02:46.8]} 21... Qxe8 {[%clk 0:04:04.1]}
22. Qf3 {[%clk 0:02:38.1]} 22... Nxd1 {[%clk 0:04:03.1]} 23. Bxd1 {[%clk
0:02:38]} 23... d5 {[%clk 0:03:59.7]} 24. Bb3 {[%clk 0:02:34.2]} 24... Be4
{[%clk 0:03:57.6]} 25. Nxe4 {[%clk 0:02:32.2]} 25... Qxe4 {[%clk 0:03:57.4]} 26.
Qxe4 {[%clk 0:02:28]} 26... dxe4 {[%clk 0:03:52.9]} 0-1

[Event "Live Chess"]
[Site "Chess.com"]
[Date "2024.06.02"]
[Round "-"]
[White "seasidecastle27"]
[Black "GEMdzq"]
[Result "0-1"]
[WhiteElo "1908"]
[BlackElo "2294"]
[TimeControl "300"]
[EndTime "2:36:25 PDT"]
[Termination "GEMdzq won by checkmate"]

1. d4 {[%clk 0:04:56.3]} 1... d5 {[%clk 0:04:58.1]} 2. Nf3 {[%clk 0:04:55.5]}
2... Bf5 {[%clk 0:04:55]} 3. Bf4 {[%clk 0:04:54.6]} 3... Nf6 {[%clk 0:04:51.3]}
4. e3 {[%clk 0:04:53.8]} 4... e6 {[%clk 0:04:50.3]} 5. Bd3 {[%clk 0:04:53]} 5...
Bg6 {[%clk 0:04:47.8]} 6. Bxg6 {[%clk 0:04:49.8]} 6... hxg6 {[%clk 0:04:46.6]}
7. Nbd2 {[%clk 0:04:48.6]} 7... Bd6 {[%clk 0:04:45.4]} 8. Bxd6 {[%clk
0:04:44.6]} 8... Qxd6 {[%clk 0:04:44.3]} 9. Qe2 {[%clk 0:04:43.7]} 9... Nbd7
{[%clk 0:04:41]} 10. O-O-O {[%clk 0:04:41.8]} 10... c5 {[%clk 0:04:39.3]} 11. e4
{[%clk 0:04:32.8]} 11... dxe4 {[%clk 0:04:29.4]} 12. Nxe4 {[%clk 0:04:30.5]}
12... Qf4+ {[%clk 0:04:28]} 13. Nfd2 {[%clk 0:04:26.9]} 13... Nxe4 {[%clk
0:04:25.2]} 14. Qxe4 {[%clk 0:04:24.9]} 14... Qc7 {[%clk 0:04:07]} 15. d5 {[%clk
0:04:17.7]} 15... e5 {[%clk 0:04:02]} 16. f4 {[%clk 0:04:09.1]} 16... O-O {[%clk
0:03:59.1]} 17. f5 {[%clk 0:04:02]} 17... Nf6 {[%clk 0:03:57]} 18. Qf3 {[%clk
0:03:49.5]} 18... g5 {[%clk 0:03:46.6]} 19. Ne4 {[%clk 0:03:40.8]} 19... Nxe4
{[%clk 0:03:40.5]} 20. Qxe4 {[%clk 0:03:39.5]} 20... Rad8 {[%clk 0:03:37.7]} 21.
h4 {[%clk 0:03:37.4]} 21... Qe7 {[%clk 0:03:27.7]} 22. h5 {[%clk 0:03:30]} 22...
Qf6 {[%clk 0:03:21.8]} 23. h6 {[%clk 0:03:18]} 23... g6 {[%clk 0:03:18.8]} 24.
h7+ {[%clk 0:03:03.1]} 24... Kh8 {[%clk 0:03:13.4]} 25. Rdf1 {[%clk 0:02:58.8]}
25... gxf5 {[%clk 0:03:05.6]} 26. Rxf5 {[%clk 0:02:56.5]} 26... Qg6 {[%clk
0:03:03.2]} 27. Qxe5+ {[%clk 0:02:44.3]} 27... f6 {[%clk 0:03:01]} 28. Qe4
{[%clk 0:02:28]} 28... Rde8 {[%clk 0:02:53.2]} 29. Qf3 {[%clk 0:02:20.9]} 29...
Rf7 {[%clk 0:02:41.7]} 30. g4 {[%clk 0:02:13]} 30... Re5 {[%clk 0:02:15.4]} 31.
Rf1 {[%clk 0:01:58.8]} 31... Rxf5 {[%clk 0:02:12.7]} 32. gxf5 {[%clk 0:01:51.5]}
32... Qh6 {[%clk 0:02:11.2]} 33. Rh1 {[%clk 0:01:40.3]} 33... Qf8 {[%clk
0:02:03.1]} 34. Re1 {[%clk 0:01:33.2]} 34... Re7 {[%clk 0:01:56.5]} 35. Re6
{[%clk 0:01:28.8]} 35... Rd7 {[%clk 0:01:44.4]} 36. Qe4 {[%clk 0:01:26.4]} 36...
Kxh7 {[%clk 0:01:40.7]} 37. Qh1+ {[%clk 0:01:08.8]} 37... Kg8 {[%clk 0:01:38.8]}
38. Qe4 {[%clk 0:00:59]} 38... Qh6 {[%clk 0:01:30.7]} 39. Re8+ {[%clk
0:00:53.8]} 39... Kh7 {[%clk 0:01:27.9]} 40. Re7+ {[%clk 0:00:51.7]} 40... Rxe7
{[%clk 0:01:26.7]} 41. Qxe7+ {[%clk 0:00:49.7]} 41... Kg8 {[%clk 0:01:25.2]} 42.
Qe8+ {[%clk 0:00:38.9]} 42... Kh7 {[%clk 0:01:21.2]} 43. d6 {[%clk 0:00:37]}
43... g4+ {[%clk 0:01:16.5]} 44. Kd1 {[%clk 0:00:28.6]} 44... Qh1+ {[%clk
0:01:14.7]} 45. Kd2 {[%clk 0:00:24.3]} 45... Qd5+ {[%clk 0:01:12.8]} 46. Kc3
{[%clk 0:00:21.5]} 46... Qd4+ {[%clk 0:01:10.6]} 47. Kb3 {[%clk 0:00:19.7]}
47... Qb4# {[%clk 0:01:09]} 0-1

[Event "Live Chess"]
[Site "Chess.com"]
[Date "2024.06.02"]
[Round "-"]
[White "JohanKjeldahl"]
[Black "Delacorta"]
[Result "1-0"]
[WhiteElo "1809"]
[BlackElo "1518"]
[TimeControl "300"]
[EndTime "2:36:31 PDT"]
[Termination "JohanKjeldahl won by resignation"]

1. e4 {[%clk 0:04:52.8]} 1... e6 {[%clk 0:04:58.9]} 2. d4 {[%clk 0:04:50.8]}
2... d5 {[%clk 0:04:58]} 3. Nd2 {[%clk 0:04:48.8]} 3... Nf6 {[%clk 0:04:51.6]}
4. e5 {[%clk 0:04:46.9]} 4... Nfd7 {[%clk 0:04:50.5]} 5. Bd3 {[%clk 0:04:45.8]}
5... b6 {[%clk 0:04:47.6]} 6. c3 {[%clk 0:04:39.5]} 6... Ba6 {[%clk 0:04:45.7]}
7. Bxa6 {[%clk 0:04:33.7]} 7... Nxa6 {[%clk 0:04:44.2]} 8. f4 {[%clk 0:04:32.7]}
8... c5 {[%clk 0:04:42.7]} 9. Ngf3 {[%clk 0:04:30.8]} 9... cxd4 {[%clk
0:04:41.5]} 10. cxd4 {[%clk 0:04:26.8]} 10... Nb4 {[%clk 0:04:38.4]} 11. O-O
{[%clk 0:04:23.6]} 11... Nd3 {[%clk 0:04:32.8]} 12. f5 {[%clk 0:04:04.9]} 12...
Rc8 {[%clk 0:04:13.9]} 13. fxe6 {[%clk 0:04:00.8]} 13... fxe6 {[%clk 0:04:12.6]}
14. Nb3 {[%clk 0:03:57.9]} 14... Nxc1 {[%clk 0:04:10.3]} 15. Rxc1 {[%clk
0:03:56.9]} 15... Be7 {[%clk 0:03:58.1]} 16. Ne1 {[%clk 0:03:46.1]} 16... Rf8
{[%clk 0:03:53.8]} 17. Qh5+ {[%clk 0:03:44.3]} 17... g6 {[%clk 0:03:46.4]} 18.
Qxh7 {[%clk 0:03:39.3]} 18... Rxf1+ {[%clk 0:03:13.8]} 19. Kxf1 {[%clk
0:03:36.7]} 19... Nxe5 {[%clk 0:03:04.4]} 20. dxe5 {[%clk 0:03:33.9]} 20... Rxc1
{[%clk 0:02:49.2]} 21. Qxg6+ {[%clk 0:03:27.1]} 21... Kd7 {[%clk 0:02:47.8]} 22.
Nxc1 {[%clk 0:03:24.6]} 22... Qc7 {[%clk 0:02:46]} 23. Ncd3 {[%clk 0:03:20.1]}
23... Qc4 {[%clk 0:02:28.8]} 24. a3 {[%clk 0:03:06.5]} 24... a6 {[%clk
0:02:18.3]} 25. Qf7 {[%clk 0:03:04.1]} 25... a5 {[%clk 0:02:00.1]} 26. Qf4
{[%clk 0:03:02.7]} 26... Qb3 {[%clk 0:01:50.6]} 27. h4 {[%clk 0:02:54.3]} 1-0

[Event "Live Chess"]
[Site "Chess.com"]
[Date "2024.06.02"]
[Round "-"]
[White "crais6"]
[Black "AndyJWise"]
[Result "1-0"]
[WhiteElo "1605"]
[BlackElo "1035"]
[TimeControl "300"]
[EndTime "2:36:40 PDT"]
[Termination "crais6 won by resignation"]

1. d4 {[%clk 0:04:56.6]} 1... d5 {[%clk 0:04:58.3]} 2. Nc3 {[%clk 0:04:55.3]}
2... c6 {[%clk 0:04:55.3]} 3. Bf4 {[%clk 0:04:51.4]} 3... Nf6 {[%clk 0:04:51.7]}
4. Nf3 {[%clk 0:04:48.7]} 4... Bg4 {[%clk 0:04:49.6]} 5. e3 {[%clk 0:04:45.7]}
5... e6 {[%clk 0:04:48.5]} 6. h3 {[%clk 0:04:43.2]} 6... Bh5 {[%clk 0:04:45.2]}
7. g4 {[%clk 0:04:42]} 7... Bg6 {[%clk 0:04:44.5]} 8. Ne5 {[%clk 0:04:41]} 8...
Nbd7 {[%clk 0:04:38.1]} 9. h4 {[%clk 0:04:36.4]} 9... h5 {[%clk 0:04:18.4]} 10.
Nxg6 {[%clk 0:04:30.4]} 10... fxg6 {[%clk 0:04:16.1]} 11. g5 {[%clk 0:04:28.9]}
11... Ng4 {[%clk 0:04:08.5]} 12. Bd3 {[%clk 0:04:25.1]} 12... Be7 {[%clk
0:03:50.2]} 13. Bxg6+ {[%clk 0:04:21.2]} 13... Kf8 {[%clk 0:03:49.3]} 14. Qf3
{[%clk 0:04:18.7]} 1-0

[Event "Live Chess"]
[Site "Chess.com"]
[Date "2024.06.02"]
[Round "-"]
[White "MagnersCarlsberg2870"]
[Black "Ferrarifan27"]
[Result "0-1"]
[WhiteElo "1808"]
[BlackElo "2139"]
[TimeControl "300"]
[EndTime "2:36:53 PDT"]
[Termination "Ferrarifan27 won by resignation"]

1. d4 {[%clk 0:04:56.9]} 1... Nf6 {[%clk 0:04:58.7]} 2. Nf3 {[%clk 0:04:55.4]}
2... d5 {[%clk 0:04:56.8]} 3. Bf4 {[%clk 0:04:53.3]} 3... e6 {[%clk 0:04:54.3]}
4. e3 {[%clk 0:04:52.5]} 4... Bd6 {[%clk 0:04:39]} 5. Bg3 {[%clk 0:04:50.5]}
5... b6 {[%clk 0:04:28.9]} 6. Nbd2 {[%clk 0:04:48.9]} 6... c6 {[%clk 0:04:26.4]}
7. Bd3 {[%clk 0:04:47]} 7... Bb7 {[%clk 0:04:24.9]} 8. c3 {[%clk 0:04:45.5]}
8... Na6 {[%clk 0:04:20.9]} 9. Qe2 {[%clk 0:04:42.3]} 9... Nc7 {[%clk
0:04:18.8]} 10. e4 {[%clk 0:04:41]} 10... dxe4 {[%clk 0:04:17.1]} 11. Nxe4
{[%clk 0:04:40]} 11... Nxe4 {[%clk 0:04:14.4]} 12. Qxe4 {[%clk 0:04:38.1]} 12...
Rb8 {[%clk 0:04:09.8]} 13. Bh4 {[%clk 0:04:34.4]} 13... Be7 {[%clk 0:04:01.1]}
14. Bxe7 {[%clk 0:04:27.1]} 14... Qxe7 {[%clk 0:03:59.6]} 15. Ne5 {[%clk
0:04:20]} 15... c5 {[%clk 0:03:54.8]} 16. Qg4 {[%clk 0:04:18.2]} 16... O-O
{[%clk 0:03:42.1]} 17. Qh3 {[%clk 0:04:07.1]} 17... g6 {[%clk 0:03:40.4]} 18.
dxc5 {[%clk 0:03:56]} 18... Qxc5 {[%clk 0:03:38.6]} 19. Ng4 {[%clk 0:03:51.7]}
19... Nd5 {[%clk 0:03:20.2]} 20. Nh6+ {[%clk 0:03:44.5]} 20... Kg7 {[%clk
0:03:18]} 21. O-O {[%clk 0:03:31.3]} 21... Nf4 {[%clk 0:03:14.1]} 22. Qg3 {[%clk
0:03:12]} 22... Nxd3 {[%clk 0:03:09.1]} 23. Qxd3 {[%clk 0:03:05.9]} 23... Kxh6
{[%clk 0:03:06.9]} 24. b4 {[%clk 0:03:04]} 24... Qd5 {[%clk 0:03:05.2]} 0-1

[Event "Live Chess"]
[Site "Chess.com"]
[Date "2024.06.02"]
[Round "-"]
[White "best137"]
[Black "blunderabit"]
[Result "0-1"]
[WhiteElo "1520"]
[BlackElo "1755"]
[TimeControl "300"]
[EndTime "2:36:58 PDT"]
[Termination "blunderabit won - game abandoned"]

1. c4 {[%clk 0:04:58.2]} 1... e5 {[%clk 0:04:57.6]} 2. Nc3 {[%clk 0:04:56]} 2...
Bb4 {[%clk 0:04:55.1]} 3. Nf3 {[%clk 0:04:55.2]} 3... Bxc3 {[%clk 0:04:52.1]} 4.
bxc3 {[%clk 0:04:53.9]} 4... d6 {[%clk 0:04:44.6]} 5. d4 {[%clk 0:04:48.3]} 5...
Qe7 {[%clk 0:04:36.7]} 6. Bg5 {[%clk 0:04:45.3]} 6... Nf6 {[%clk 0:04:32.4]} 7.
e4 {[%clk 0:04:36.9]} 7... h6 {[%clk 0:04:30]} 8. Bxf6 {[%clk 0:04:34.1]} 8...
Qxf6 {[%clk 0:04:28.6]} 9. Be2 {[%clk 0:04:19.8]} 9... O-O {[%clk 0:04:25.3]}
10. O-O {[%clk 0:04:13.9]} 10... Nc6 {[%clk 0:04:21.6]} 11. d5 {[%clk 0:04:08]}
11... Na5 {[%clk 0:04:16.9]} 12. Qa4 {[%clk 0:04:00.8]} 12... b6 {[%clk
0:04:14.6]} 13. Rad1 {[%clk 0:03:08]} 13... Qe7 {[%clk 0:04:12.9]} 14. c5 {[%clk
0:02:51.4]} 14... dxc5 {[%clk 0:04:08.8]} 15. Rd2 {[%clk 0:02:43.9]} 15... Bd7
{[%clk 0:03:55.3]} 16. Bb5 {[%clk 0:02:39.3]} 16... Bxb5 {[%clk 0:03:48.5]} 17.
Qxb5 {[%clk 0:02:39.1]} 17... Nb7 {[%clk 0:03:47.6]} 18. Qc6 {[%clk 0:02:30.6]}
18... Nd6 {[%clk 0:03:44.1]} 19. Rc1 {[%clk 0:02:10.4]} 19... Rfc8 {[%clk
0:03:42.3]} 20. c4 {[%clk 0:02:04.4]} 20... Qe8 {[%clk 0:03:39.9]} 0-1

[Event "Live Chess"]
[Site "Chess.com"]
[Date "2024.06.02"]
[Round "-"]
[White "silunn"]
[Black "Thebigsqueeze"]
[Result "0-1"]
[WhiteElo "2123"]
[BlackElo "2283"]
[TimeControl "300"]
[EndTime "2:37:07 PDT"]
[Termination "Thebigsqueeze won by checkmate"]

1. e4 {[%clk 0:04:59.1]} 1... e6 {[%clk 0:04:57.4]} 2. d4 {[%clk 0:04:56.6]}
2... d5 {[%clk 0:04:56.3]} 3. exd5 {[%clk 0:04:54.5]} 3... exd5 {[%clk
0:04:54.7]} 4. Bd3 {[%clk 0:04:54.3]} 4... Nc6 {[%clk 0:04:53.8]} 5. Nf3 {[%clk
0:04:52.8]} 5... Bd6 {[%clk 0:04:53.3]} 6. Nbd2 {[%clk 0:04:49]} 6... Bg4 {[%clk
0:04:52.3]} 7. h3 {[%clk 0:04:48.1]} 7... Bh5 {[%clk 0:04:50.6]} 8. c3 {[%clk
0:04:44.7]} 8... Qd7 {[%clk 0:04:48.5]} 9. Qb3 {[%clk 0:04:41.8]} 9... O-O-O
{[%clk 0:04:44.8]} 10. Qxd5 {[%clk 0:04:31.7]} 10... Nf6 {[%clk 0:04:42.6]} 11.
Qf5 {[%clk 0:04:18.9]} 11... Rhe8+ {[%clk 0:04:32.8]} 12. Kd1 {[%clk 0:04:10]}
12... Bg6 {[%clk 0:04:08.6]} 13. Qxd7+ {[%clk 0:04:07.9]} 13... Rxd7 {[%clk
0:04:06.4]} 14. Bxg6 {[%clk 0:04:06.4]} 14... hxg6 {[%clk 0:04:05.5]} 15. Nc4
{[%clk 0:04:00.2]} 15... Ne4 {[%clk 0:04:01.4]} 16. Nxd6+ {[%clk 0:03:57.1]}
16... cxd6 {[%clk 0:03:54.9]} 17. Be3 {[%clk 0:03:56.1]} 17... f5 {[%clk
0:03:53.5]} 18. g3 {[%clk 0:03:44.9]} 18... Na5 {[%clk 0:03:47.6]} 19. Re1
{[%clk 0:03:33.5]} 19... Nc4 {[%clk 0:03:44.6]} 20. b3 {[%clk 0:02:31.4]} 20...
Nxc3+ {[%clk 0:03:30.2]} 21. Kc2 {[%clk 0:02:26.3]} 21... Nxe3+ {[%clk
0:03:26.4]} 22. Kxc3 {[%clk 0:01:55.8]} 22... Nd5+ {[%clk 0:03:22.6]} 23. Kc4
{[%clk 0:01:54.1]} 23... Rxe1 {[%clk 0:03:07.3]} 24. Rxe1 {[%clk 0:01:54]} 24...
Nf6 {[%clk 0:03:05.8]} 25. Nh4 {[%clk 0:01:48.6]} 25... Rc7+ {[%clk 0:02:56.3]}
26. Kd3 {[%clk 0:01:11.3]} 26... Ne4 {[%clk 0:02:54.3]} 27. Nxg6 {[%clk
0:01:01.9]} 27... Nxf2+ {[%clk 0:02:52.8]} 28. Ke3 {[%clk 0:00:57.1]} 28... Nxh3
{[%clk 0:02:50.3]} 29. Rh1 {[%clk 0:00:52.6]} 29... Rc3+ {[%clk 0:02:41.9]} 30.
Kd2 {[%clk 0:00:49.8]} 30... Rxg3 {[%clk 0:02:39.7]} 31. Ne7+ {[%clk 0:00:48.9]}
31... Kd7 {[%clk 0:02:36.8]} 32. Nxf5 {[%clk 0:00:48.8]} 32... Rg2+ {[%clk
0:02:30]} 33. Kc3 {[%clk 0:00:47.7]} 33... Ng5 {[%clk 0:02:18.1]} 34. Kd3 {[%clk
0:00:37.2]} 34... g6 {[%clk 0:02:05.5]} 35. Nh4 {[%clk 0:00:32.6]} 35... Rxa2
{[%clk 0:01:54.4]} 36. Nxg6 {[%clk 0:00:32]} 36... a5 {[%clk 0:01:44.8]} 37. Rg1
{[%clk 0:00:30.3]} 37... Ne6 {[%clk 0:01:39.7]} 38. Kc3 {[%clk 0:00:27.9]} 38...
b5 {[%clk 0:01:36.6]} 39. Rf1 {[%clk 0:00:26.4]} 39... Rg2 {[%clk 0:01:24.5]}
40. Rf7+ {[%clk 0:00:24.2]} 40... Kd8 {[%clk 0:01:23.3]} 41. Nf8 {[%clk
0:00:18.2]} 41... Rg3+ {[%clk 0:01:16.5]} 42. Kc2 {[%clk 0:00:17.3]} 42... Nxd4+
{[%clk 0:01:14.5]} 43. Kb2 {[%clk 0:00:16.3]} 43... Rxb3+ {[%clk 0:01:11.8]} 44.
Ka2 {[%clk 0:00:15.6]} 44... Ke8 {[%clk 0:01:09.7]} 45. Rf2 {[%clk 0:00:13.8]}
45... a4 {[%clk 0:01:03.4]} 46. Ng6 {[%clk 0:00:13.5]} 46... Nc6 {[%clk
0:00:59.2]} 47. Nf4 {[%clk 0:00:13]} 47... Nb4+ {[%clk 0:00:57.1]} 48. Ka1
{[%clk 0:00:12.5]} 48... Re3 {[%clk 0:00:45.8]} 49. Ng2 {[%clk 0:00:11.3]} 49...
Re4 {[%clk 0:00:43.4]} 50. Nf4 {[%clk 0:00:09.6]} 50... Kd7 {[%clk 0:00:37.6]}
51. Ne2 {[%clk 0:00:09.1]} 51... Nd3 {[%clk 0:00:32.8]} 52. Rh2 {[%clk 0:00:08]}
52... b4 {[%clk 0:00:28.2]} 53. Ng3 {[%clk 0:00:06.5]} 53... Re1+ {[%clk
0:00:25.5]} 54. Ka2 {[%clk 0:00:05.5]} 54... b3+ {[%clk 0:00:23]} 55. Ka3 {[%clk
0:00:05.2]} 55... Ra1+ {[%clk 0:00:21.8]} 56. Ra2 {[%clk 0:00:02.9]} 56... Rxa2#
{[%clk 0:00:20.8]} 0-1

[Event "Live Chess"]
[Site "Chess.com"]
[Date "2024.06.02"]
[Round "-"]
[White "Purple1szed"]
[Black "JanMur7"]
[Result "0-1"]
[WhiteElo "2072"]
[BlackElo "2281"]
[TimeControl "300"]
[EndTime "2:37:20 PDT"]
[Termination "JanMur7 won by resignation"]

1. c4 {[%clk 0:04:47.9]} 1... c5 {[%clk 0:04:57.9]} 2. Nc3 {[%clk 0:04:47]} 2...
Nc6 {[%clk 0:04:57.3]} 3. g3 {[%clk 0:04:46.7]} 3... g6 {[%clk 0:04:56.3]} 4.
Bg2 {[%clk 0:04:46.4]} 4... Bg7 {[%clk 0:04:55.6]} 5. e3 {[%clk 0:04:46.1]} 5...
e6 {[%clk 0:04:54.8]} 6. Nge2 {[%clk 0:04:45.8]} 6... Nge7 {[%clk 0:04:54.2]} 7.
d4 {[%clk 0:04:45.5]} 7... cxd4 {[%clk 0:04:52.1]} 8. exd4 {[%clk 0:04:45.4]}
8... d5 {[%clk 0:04:51.2]} 9. cxd5 {[%clk 0:04:45.3]} 9... exd5 {[%clk
0:04:49.9]} 10. Nxd5 {[%clk 0:04:44.9]} 10... Nxd5 {[%clk 0:04:48.3]} 11. O-O
{[%clk 0:04:31.8]} 11... O-O {[%clk 0:04:44.5]} 0-1